[Event "72nd RUS-ch Higher League 2019"]
[Site "Yaroslavl"]
[Date "2019.07.01"]
[Round "5.25"]
[White "Rychkov, Oleg"]
[Black "Airapetian, Gor"]
[Result "1/2-1/2"]
[ECO "B18"]
[WhiteElo "2409"]
[BlackElo "2442"]
[Annotator "NA"]
[PlyCount "111"]
[EventDate "2019.06.27"]
[EventType "swiss"]
[EventCountry "RUS"]
[SourceTitle "playchess.com"]
[Source "ChessBase"]
[SourceQuality "1"]
[TimeControl "40/5400+30:1800+30"]

1. e4 {[%emt 0:00:00]} c6 {[%emt 0:00:00]} 2. d4 {[%emt 0:00:00]} d5 {[%emt 0:00:00]} 3. Nd2 {[%emt 0:00:10]} dxe4 {[%emt 0:00:13]} 4. Nxe4 {[%emt 0:00:05]} Bf5 {[%emt 0:00:05]} 5. Nc5 {[%emt 0:00:11]} Nd7 {[%emt 0:01:31]} 6. Nxb7 {[%emt 0:01:28]} Qc7 {[%emt 0:00:41]} 7. Nc5 {[%emt 0:00:14]} Nxc5 {[%emt 0:00:05]} 8. dxc5 {[%emt 0:00:05]} e6 {[%emt 0:00:14]} 9. Be3 {[%emt 0:01:31]} Rd8 {[%emt 0:01:51]} 10. Bd3 {[%emt 0:02:01]} Ne7 {[%emt 0:14:12]} 11. Nf3 {[%emt 0:04:31]} e5 {[%emt 0:04:48]} 12. Nd2 {[%emt 0:03:49]} Bxd3 {[%emt 0:05:18]} 13. cxd3 {[%emt 0:00:05]} Rxd3 {[%emt 0:01:39]} 14. Qa4 {[%emt 0:11:47]} Nf5 {[%emt 0:18:38]} 15. Qe4 {[%emt 0:00:32]} Qd7 {[%emt 0:00:06]} 16. Nc4 {[%emt 0:18:41]} Nxe3 {[%emt 0:02:52]} 17. Qxe5+ {[%emt 0:05:27]} Be7 {[%emt 0:04:29]} 18. Nxe3 {[%emt 0:00:51]} O-O {[%emt 0:00:39]} 19. O-O {[%emt 0:00:28]} Bf6 {[%emt 0:00:37]} 20. Qe4 {[%emt 0:00:14]} Re8 {[%emt 0:13:09]} 21. Qa4 {[%emt 0:09:11]} Bd4 {[%emt 0:05:13]} 22. Rad1 {[%emt 0:14:55]} Bxe3 {[%emt 0:01:33]} 23. fxe3 {[%emt 0:00:05]} Rexe3 {[%emt 0:00:20]} 24. Qb3 {[%emt 0:02:59]} Rxd1 {[%emt 0:04:26]} 25. Rxd1 {[%emt 0:00:30]} Qe8 {[%emt 0:00:07]} 26. Qb4 {[%emt 0:00:54]} h6 {[%emt 0:03:56]} 27. h3 {[%emt 0:03:19]} Qe5 {[%emt 0:01:44]} 28. Rf1 {[%emt 0:00:52]} Qd5 {[%emt 0:04:12]} 29. Rf2 {[%emt 0:03:28]} Qxa2 {[%emt 0:03:17]} 30. Qb8+ {[%emt 0:00:15]} Kh7 {[%emt 0:00:02]} 31. Qc7 {[%emt 0:00:11]} Qd5 {[%emt 0:06:12]} 32. Rxf7 {[%emt 0:01:05]} Re1+ {[%emt 0:00:58]} 33. Kh2 {[%emt 0:00:09]} Qd4 {[%emt 0:00:34]} 34. Qd6 {[%emt 0:01:01]} Qg1+ {[%emt 0:00:44]} 35. Kg3 {[%emt 0:00:07]} Re3+ {[%emt 0:00:18]} 36. Rf3 {[%emt 0:00:38]} Qe1+ {[%emt 0:00:16]} 37. Kg4 {[%emt 0:02:03]} Re4+ {[%emt 0:01:21]} 38. Rf4 {[%emt 0:00:16]} h5+ {[%emt 0:02:04]} 39. Kf5 {[%emt 0:00:49]} Rxf4+ {[%emt 0:00:34]} 40. Qxf4 {[%emt 0:00:00]} Qe7 {[%emt 0:00:00]} 41. Qd6 {[%emt 0:02:13]} Qf7+ {[%emt 0:04:17]} 42. Ke5 {[%emt 0:01:01]} Qe8+ {[%emt 0:01:17]} 43. Kf5 {[%emt 0:02:47]} a5 {[%emt 0:01:03]} 44. g4 {[%emt 0:02:51]} a4 {[%emt 0:02:31]} 45. Qe5 {[%emt 0:05:15]} Qd7+ {[%emt 0:02:04]} 46. Qe6 {[%emt 0:03:00]} Qd3+ {[%emt 0:04:53]} 47. Qe4 {[%emt 0:01:49]} g6+ {[%emt 0:01:05]} 48. Ke5 {[%emt 0:00:25]} Qg3+ {[%emt 0:02:31]} 49. Qf4 {[%emt 0:00:08]} Qxh3 {[%emt 0:05:32]} 50. Qf7+ {[%emt 0:00:28]} Kh8 {[%emt 0:00:02]} 51. gxh5 {[%emt 0:02:45]} Qxh5+ {[%emt 0:03:45]} 52. Kd6 {[%emt 0:00:09]} Qh2+ {[%emt 0:00:12]} 53. Kxc6 {[%emt 0:00:09]} Qxb2 {[%emt 0:00:07]} 54. Qe8+ {[%emt 0:02:18]} Kh7 {[%emt 0:01:07]} 55. Qe7+ {[%emt 0:00:07]} Kg8 {[%emt 0:01:22]} 56. Qe8+ {[%emt 0:01:31]} 1/2-1/2

[Event "72nd RUS-ch Higher League 2019"]
[Site "Yaroslavl"]
[Date "2019.07.01"]
[Round "5.26"]
[White "Mirzaev, Aziz"]
[Black "Galaktionov, Artem"]
[Result "1-0"]
[ECO "D37"]
[WhiteElo "2433"]
[BlackElo "2371"]
[Annotator "NA"]
[PlyCount "127"]
[EventDate "2019.06.27"]
[EventType "swiss"]
[EventCountry "RUS"]
[SourceTitle "playchess.com"]
[Source "ChessBase"]
[SourceQuality "1"]
[TimeControl "40/5400+30:1800+30"]

1. d4 {[%emt 0:00:00]} d5 {[%emt 0:02:04]} 2. Nf3 {[%emt 0:00:18]} Nf6 {[%emt 0:00:04]} 3. c4 {[%emt 0:00:09]} e6 {[%emt 0:00:03]} 4. Nc3 {[%emt 0:00:23]} Be7 {[%emt 0:00:04]} 5. g3 {[%emt 0:00:18]} O-O {[%emt 0:00:12]} 6. Bg2 {[%emt 0:00:15]} c6 {[%emt 0:00:17]} 7. O-O {[%emt 0:00:15]} Nbd7 {[%emt 0:00:05]} 8. b3 {[%emt 0:01:02]} b6 {[%emt 0:04:41]} 9. Qd3 {[%emt 0:00:23]} Ba6 {[%emt 0:01:34]} 10. Rd1 {[%emt 0:00:47]} Rc8 {[%emt 0:01:41]} 11. e4 {[%emt 0:00:47]} c5 {[%emt 0:00:45]} 12. exd5 {[%emt 0:00:15]} exd5 {[%emt 0:00:04]} 13. Bb2 {[%emt 0:00:24]} dxc4 {[%emt 0:07:34]} 14. bxc4 {[%emt 0:00:11]} cxd4 {[%emt 0:00:02]} 15. Nb5 {[%emt 0:00:08]} Nc5 {[%emt 0:01:12]} 16. Qxd4 {[%emt 0:00:12]} Qxd4 {[%emt 0:00:10]} 17. Nfxd4 {[%emt 0:00:40]} Na4 {[%emt 0:02:57]} 18. Nf5 {[%emt 0:00:19]} Bb4 {[%emt 0:01:29]} 19. Bxf6 {[%emt 0:08:53]} gxf6 {[%emt 0:00:01]} 20. Nxa7 {[%emt 0:00:19]} Rxc4 {[%emt 0:01:48]} 21. Ne3 {[%emt 0:08:12]} Rc7 {[%emt 0:09:58]} 22. Nd5 {[%emt 0:04:04]} Rxa7 {[%emt 0:01:19]} 23. Nxb4 {[%emt 0:00:07]} Bc4 {[%emt 0:07:55]} 24. Rd6 {[%emt 0:10:01]} Kg7 {[%emt 0:03:26]} 25. Nc6 {[%emt 0:08:48]} Rc7 {[%emt 0:04:08]} 26. Nd4 {[%emt 0:06:16]} Bd3 {[%emt 0:03:19]} 27. Rd1 {[%emt 0:12:44]} Bg6 {[%emt 0:01:53]} 28. f4 {[%emt 0:00:50]} Nb2 {[%emt 0:00:51]} 29. Re1 {[%emt 0:02:59]} Nc4 {[%emt 0:06:44]} 30. Rd5 {[%emt 0:04:43]} Bd3 {[%emt 0:09:40]} 31. Rd1 {[%emt 0:06:58]} Bg6 {[%emt 0:06:19]} 32. Rc1 {[%emt 0:06:26]} Rfc8 {[%emt 0:02:01]} 33. Nb5 {[%emt 0:08:03]} Rc5 {[%emt 0:02:46]} 34. Rxc5 {[%emt 0:01:18]} Rxc5 {[%emt 0:00:04]} 35. a4 {[%emt 0:00:05]} Bf5 {[%emt 0:03:37]} 36. Bf1 {[%emt 0:02:52]} Be6 {[%emt 0:03:49]} 37. Nd4 {[%emt 0:02:26]} Bd5 {[%emt 0:00:05]} 38. Bd3 {[%emt 0:04:24]} Kf8 {[%emt 0:09:44]} 39. Rc2 {[%emt 0:01:00]} Na5 {[%emt 0:01:22]} 40. Bxh7 {[%emt 0:00:44]} Bc4 {[%emt 0:00:00]} 41. Be4 {[%emt 0:00:54]} Ke7 {[%emt 0:03:18]} 42. Kf2 {[%emt 0:07:09]} Rh5 {[%emt 0:02:23]} 43. h4 {[%emt 0:00:51]} Rh8 {[%emt 0:00:37]} 44. Nc6+ {[%emt 0:01:24]} Nxc6 {[%emt 0:00:09]} 45. Rxc4 {[%emt 0:00:04]} Na5 {[%emt 0:00:13]} 46. Rc7+ {[%emt 0:00:18]} Ke6 {[%emt 0:00:01]} 47. Kf3 {[%emt 0:02:30]} Rd8 {[%emt 0:01:17]} 48. f5+ {[%emt 0:00:34]} Ke5 {[%emt 0:00:01]} 49. Re7+ {[%emt 0:00:28]} Kd4 {[%emt 0:00:04]} 50. Rxf7 {[%emt 0:00:22]} Nb3 {[%emt 0:00:06]} 51. Kf4 {[%emt 0:03:34]} Nc5 {[%emt 0:00:50]} 52. Re7 {[%emt 0:03:18]} Nxa4 {[%emt 0:01:49]} 53. g4 {[%emt 0:03:00]} Nc5 {[%emt 0:01:31]} 54. g5 {[%emt 0:04:08]} Rh8 {[%emt 0:01:03]} 55. gxf6 {[%emt 0:00:37]} Rxh4+ {[%emt 0:00:14]} 56. Kg5 {[%emt 0:00:49]} Rxe4 {[%emt 0:01:03]} 57. f7 {[%emt 0:00:09]} Rxe7 {[%emt 0:00:04]} 58. f8=Q {[%emt 0:00:09]} Rb7 {[%emt 0:00:33]} 59. Qd6+ {[%emt 0:02:37]} Kc4 {[%emt 0:00:39]} 60. Qf4+ {[%emt 0:00:09]} Kd5 {[%emt 0:00:24]} 61. Qf3+ {[%emt 0:00:27]} Kd6 {[%emt 0:02:45]} 62. f6 {[%emt 0:00:53]} Ne6+ {[%emt 0:03:05]} 63. Kg6 {[%emt 0:00:21]} Nd8 {[%emt 0:00:02]} 64. Qxb7 {[%emt 0:01:34]} 1-0

[Event "72nd RUS-ch Higher League 2019"]
[Site "Yaroslavl"]
[Date "2019.07.01"]
[Round "5.27"]
[White "Kanter, Eduard"]
[Black "Nesterov, Arseniy"]
[Result "0-1"]
[ECO "D16"]
[WhiteElo "2392"]
[BlackElo "2423"]
[Annotator "NA"]
[PlyCount "82"]
[EventDate "2019.06.27"]
[EventType "swiss"]
[EventCountry "RUS"]
[SourceTitle "playchess.com"]
[Source "ChessBase"]
[SourceQuality "1"]
[TimeControl "40/5400+30:1800+30"]

1. d4 {[%emt 0:00:00]} d5 {[%emt 0:00:00]} 2. c4 {[%emt 0:00:00]} c6 {[%emt 0:00:00]} 3. Nf3 {[%emt 0:00:00]} Nf6 {[%emt 0:00:00]} 4. Nc3 {[%emt 0:00:04]} dxc4 {[%emt 0:00:00]} 5. a4 {[%emt 0:00:51]} a5 {[%emt 0:00:00]} 6. h3 {[%emt 0:02:01]} Nbd7 {[%emt 0:08:47]} 7. e4 {[%emt 0:00:24]} Nb6 {[%emt 0:00:29]} 8. Be2 {[%emt 0:00:43]} e6 {[%emt 0:10:30]} 9. O-O {[%emt 0:01:15]} Bb4 {[%emt 0:05:35]} 10. Qc2 {[%emt 0:02:55]} Nfd7 {[%emt 0:07:37]} 11. Na2 {[%emt 0:17:22]} Be7 {[%emt 0:07:00]} 12. Be3 {[%emt 0:03:59]} O-O {[%emt 0:00:47]} 13. Rfd1 {[%emt 0:01:30]} Qc7 {[%emt 0:03:10]} 14. Nc3 {[%emt 0:21:44]} Rd8 {[%emt 0:14:19]} 15. Nd2 {[%emt 0:18:28]} e5 {[%emt 0:01:18]} 16. Nxc4 {[%emt 0:00:10]} Nxc4 {[%emt 0:03:30]} 17. Bxc4 {[%emt 0:00:07]} exd4 {[%emt 0:02:08]} 18. Bxd4 {[%emt 0:00:06]} Ne5 {[%emt 0:08:47]} 19. Bb3 {[%emt 0:00:28]} Rxd4 {[%emt 0:10:41]} 20. Rxd4 {[%emt 0:00:50]} Bc5 {[%emt 0:00:04]} 21. Ne2 {[%emt 0:15:30]} Bxd4 {[%emt 0:01:30]} 22. Nxd4 {[%emt 0:00:06]} Bxh3 {[%emt 0:06:17]} 23. gxh3 {[%emt 0:03:09]} Rd8 {[%emt 0:00:04]} 24. Nf5 {[%emt 0:00:50]} Rd2 {[%emt 0:01:18]} 25. Qc5 {[%emt 0:05:36]} g6 {[%emt 0:05:46]} 26. Ng3 {[%emt 0:01:29]} b6 {[%emt 0:01:17]} 27. Qc3 {[%emt 0:01:06]} Rd3 {[%emt 0:01:02]} 28. Qc2 {[%emt 0:00:04]} Rd2 {[%emt 0:00:53]} 29. Qc3 {[%emt 0:00:20]} Qd6 {[%emt 0:00:51]} 30. Bc2 {[%emt 0:02:50]} Qf6 {[%emt 0:00:08]} 31. Rf1 {[%emt 0:00:55]} Nf3+ {[%emt 0:00:06]} 32. Kg2 {[%emt 0:00:17]} Nh4+ {[%emt 0:00:43]} 33. Kg1 {[%emt 0:00:10]} Qf3 {[%emt 0:00:42]} 34. Qxf3 {[%emt 0:00:23]} Nxf3+ {[%emt 0:00:01]} 35. Kg2 {[%emt 0:00:01]} Nh4+ {[%emt 0:00:09]} 36. Kg1 {[%emt 0:00:04]} Rxc2 {[%emt 0:00:05]} 37. Rb1 {[%emt 0:00:56]} Nf3+ {[%emt 0:00:11]} 38. Kg2 {[%emt 0:00:00]} Nd2 {[%emt 0:00:05]} 39. Re1 {[%emt 0:01:52]} Rxb2 {[%emt 0:00:13]} 40. e5 {[%emt 0:00:00]} b5 {[%emt 0:00:00]} 41. Re2 {[%emt 0:00:29]} bxa4 {[%emt 0:01:59]} 0-1

[Event "72nd RUS-ch Higher League 2019"]
[Site "Yaroslavl"]
[Date "2019.07.01"]
[Round "5.28"]
[White "Sadovsky, Artem"]
[Black "Lesovoi, Evgenij"]
[Result "1-0"]
[ECO "A06"]
[WhiteElo "2416"]
[BlackElo "2366"]
[Annotator "NA"]
[PlyCount "107"]
[EventDate "2019.06.27"]
[EventType "swiss"]
[EventCountry "RUS"]
[SourceTitle "playchess.com"]
[Source "ChessBase"]
[SourceQuality "1"]
[TimeControl "40/5400+30:1800+30"]

1. Nf3 {[%emt 0:00:00]} d5 {[%emt 0:00:00]} 2. g3 {[%emt 0:00:27]} Nf6 {[%emt 0:00:19]} 3. Bg2 {[%emt 0:00:13]} Bf5 {[%emt 0:00:58]} 4. c4 {[%emt 0:00:58]} e6 {[%emt 0:03:11]} 5. O-O {[%emt 0:01:01]} Be7 {[%emt 0:00:43]} 6. Qb3 {[%emt 0:05:06]} Qc8 {[%emt 0:01:42]} 7. d3 {[%emt 0:08:03]} c6 {[%emt 0:02:05]} 8. Nc3 {[%emt 0:04:55]} O-O {[%emt 0:01:59]} 9. Nh4 {[%emt 0:05:21]} Bg4 {[%emt 0:05:11]} 10. h3 {[%emt 0:00:22]} Bh5 {[%emt 0:00:14]} 11. g4 {[%emt 0:00:24]} Nfd7 {[%emt 0:01:52]} 12. cxd5 {[%emt 0:02:54]} Bxg4 {[%emt 0:04:45]} 13. hxg4 {[%emt 0:01:51]} Bxh4 {[%emt 0:01:13]} 14. dxe6 {[%emt 0:01:21]} Ne5 {[%emt 0:01:34]} 15. Bf4 {[%emt 0:02:26]} Nxg4 {[%emt 0:08:44]} 16. Bd6 {[%emt 0:01:17]} Be7 {[%emt 0:03:48]} 17. exf7+ {[%emt 0:06:14]} Rxf7 {[%emt 0:02:47]} 18. f3 {[%emt 0:04:37]} Ne3 {[%emt 0:31:47]} 19. Bxe7 {[%emt 0:02:31]} Qc7 {[%emt 0:00:55]} 20. Ba3 {[%emt 0:05:45]} Nxf1 {[%emt 0:03:55]} 21. Rxf1 {[%emt 0:00:16]} Na6 {[%emt 0:00:38]} 22. Rf2 {[%emt 0:02:32]} h6 {[%emt 0:03:06]} 23. Ne4 {[%emt 0:00:29]} c5 {[%emt 0:04:54]} 24. f4 {[%emt 0:07:25]} Kh8 {[%emt 0:01:15]} 25. Nd6 {[%emt 0:00:47]} Rff8 {[%emt 0:00:49]} 26. Nb5 {[%emt 0:05:29]} Qa5 {[%emt 0:02:04]} 27. Nc3 {[%emt 0:00:31]} Rab8 {[%emt 0:00:18]} 28. Qb5 {[%emt 0:02:43]} Qc7 {[%emt 0:00:16]} 29. Nd5 {[%emt 0:04:18]} Qf7 {[%emt 0:02:58]} 30. b3 {[%emt 0:00:40]} Rbd8 {[%emt 0:00:50]} 31. e4 {[%emt 0:01:04]} Rd6 {[%emt 0:02:51]} 32. f5 {[%emt 0:00:55]} Qh5 {[%emt 0:01:08]} 33. Qxb7 {[%emt 0:05:14]} Rf7 {[%emt 0:04:09]} 34. Qc8+ {[%emt 0:00:14]} Kh7 {[%emt 0:00:05]} 35. e5 {[%emt 0:07:10]} Rxd5 {[%emt 0:03:16]} 36. Bxd5 {[%emt 0:00:10]} Qd1+ {[%emt 0:00:05]} 37. Rf1 {[%emt 0:01:17]} Qxd3 {[%emt 0:00:06]} 38. Qe6 {[%emt 0:01:13]} Qd4+ {[%emt 0:01:02]} 39. Rf2 {[%emt 0:02:11]} Qd1+ {[%emt 0:00:27]} 40. Kg2 {[%emt 0:00:00]} Qg4+ {[%emt 0:00:00]} 41. Kh1 {[%emt 0:00:40]} Qd1+ {[%emt 0:07:16]} 42. Kh2 {[%emt 0:11:11]} Qh5+ {[%emt 0:00:15]} 43. Kg3 {[%emt 0:02:24]} Qg5+ {[%emt 0:00:09]} 44. Kf3 {[%emt 0:00:38]} Rxf5+ {[%emt 0:00:10]} 45. Ke2 {[%emt 0:00:11]} Rxf2+ {[%emt 0:00:14]} 46. Kxf2 {[%emt 0:00:04]} Qd2+ {[%emt 0:06:42]} 47. Kg3 {[%emt 0:01:41]} Qe1+ {[%emt 0:10:12]} 48. Kh2 {[%emt 0:00:19]} Qe2+ {[%emt 0:00:33]} 49. Bg2 {[%emt 0:00:56]} Qh5+ {[%emt 0:00:06]} 50. Kg3 {[%emt 0:01:58]} Qg5+ {[%emt 0:00:41]} 51. Kf3 {[%emt 0:04:00]} Nc7 {[%emt 0:01:36]} 52. Qg4 {[%emt 0:01:04]} Qd2 {[%emt 0:00:37]} 53. Bxc5 {[%emt 0:03:51]} Nd5 {[%emt 0:01:44]} 54. Qd4 {[%emt 0:01:15]} 1-0

[Event "72nd RUS-ch Higher League 2019"]
[Site "Yaroslavl"]
[Date "2019.07.01"]
[Round "5.29"]
[White "Drygalov, Sergey"]
[Black "Ibadov, Dashgyn"]
[Result "1-0"]
[ECO "A67"]
[WhiteElo "2492"]
[BlackElo "2298"]
[Annotator "ChessBase"]
[PlyCount "59"]
[EventDate "2019.06.27"]
[EventType "swiss"]
[EventCountry "RUS"]
[SourceTitle "playchess.com"]
[Source "ChessBase"]
[SourceQuality "1"]
[TimeControl "40/5400+30:1800+30"]

1. d4 {[%emt 0:00:00]} e6 {[%emt 0:00:00]} 2. c4 {[%emt 0:00:00]} Nf6 {[%emt 0:00:00]} 3. Nc3 {[%emt 0:00:00]} c5 {[%emt 0:00:00]} 4. d5 {[%emt 0:00:00]} exd5 {[%emt 0:00:00]} 5. cxd5 {[%emt 0:00:00]} d6 {[%emt 0:00:00]} 6. e4 {[%emt 0:00:00]} g6 {[%emt 0:00:00]} 7. f4 {[%emt 0:00:01]} Bg7 {[%emt 0:00:07]} 8. Bb5+ {[%emt 0:00:06]} Nfd7 {[%emt 0:00:10]} 9. Nf3 {[%emt 0:00:05]} O-O {[%emt 0:00:04]} 10. O-O {[%emt 0:00:35]} a6 {[%emt 0:00:29]} 11. Bd3 {[%emt 0:00:04]} b5 {[%emt 0:00:12]} 12. Kh1 {[%emt 0:00:05]} Nb6 {[%emt 0:08:11]} 13. f5 {[%emt 0:00:07]} N8d7 {[%emt 0:00:27]} 14. Bg5 {[%emt 0:00:12]} Qc7 {[%emt 0:00:15]} 15. Qe1 {[%emt 0:00:18]} b4 {[%emt 0:00:24]} 16. Nd1 {[%emt 0:00:18]} gxf5 {[%emt 0:06:49]} 17. Qh4 {[%emt 0:00:41]} f6 {[%emt 0:10:20]} 18. Bd2 {[%emt 0:01:52]} Ne5 {[%emt 0:17:06]} 19. Nxe5 {[%emt 0:00:06]} fxe5 {[%emt 0:00:25]} 20. exf5 {[%emt 0:00:04]} e4 {[%emt 0:11:13]} 21. Bxe4 {[%emt 0:04:22]} Bf6 {[%emt 0:07:37]} 22. Bg5 {[%emt 0:01:54]} Qg7 {[%emt 0:02:44]} 23. Bxf6 {[%emt 0:00:06]} Qxf6 {[%emt 0:00:39]} 24. Qg3+ {[%emt 0:03:43]} Kh8 {[%emt 0:00:31]} 25. Ne3 {[%emt 0:02:40]} Bb7 {[%emt 0:02:57]} 26. Ng4 {[%emt 0:08:06]} Qd4 {[%emt 0:02:10]} 27. Rae1 {[%emt 0:05:37]} Nc4 {[%emt 0:07:43]} 28. f6 {[%emt 0:01:35]} Nd2 {[%emt 0:04:05]} 29. Nh6 {[%emt 0:03:32]} Rxf6 {[%emt 0:00:26]} 30. Nf7+ 1-0

[Event "72nd RUS-ch Higher League 2019"]
[Site "Yaroslavl"]
[Date "2019.07.03"]
[Round "6.4"]
[White "Chigaev, Maksim"]
[Black "Sakaev, Konstantin"]
[Result "1/2-1/2"]
[ECO "B24"]
[WhiteElo "2640"]
[BlackElo "2584"]
[Annotator "ChessBase"]
[PlyCount "69"]
[EventDate "2019.06.27"]
[EventType "swiss"]
[EventCountry "RUS"]
[SourceTitle "playchess.com"]
[Source "ChessBase"]
[SourceQuality "1"]
[TimeControl "40/5400+30:1800+30"]

1. e4 {[%emt 0:00:00]} c5 {[%emt 0:00:14]} 2. Nc3 {[%emt 0:00:00]} Nc6 {[%emt 0:00:50]} 3. Bb5 {[%emt 0:02:00]} Nd4 {[%emt 0:01:29]} 4. Nf3 {[%emt 0:00:08]} a6 {[%emt 0:06:46]} 5. Bd3 {[%emt 0:00:23]} g6 {[%emt 0:05:46]} 6. Nxd4 {[%emt 0:09:01]} cxd4 {[%emt 0:00:21]} 7. Ne2 {[%emt 0:00:06]} Bg7 {[%emt 0:00:29]} 8. O-O {[%emt 0:00:12]} d5 {[%emt 0:09:37]} 9. exd5 {[%emt 0:17:53]} Qxd5 {[%emt 0:00:59]} 10. c3 {[%emt 0:00:13]} dxc3 {[%emt 0:04:36]} 11. dxc3 {[%emt 0:00:09]} Nf6 {[%emt 0:00:10]} 12. Nf4 {[%emt 0:03:50]} Qc6 {[%emt 0:06:05]} 13. Re1 {[%emt 0:09:12]} Qc7 {[%emt 0:10:08]} 14. Qa4+ {[%emt 0:07:54]} Bd7 {[%emt 0:01:50]} 15. Qb4 {[%emt 0:00:21]} e6 {[%emt 0:01:26]} 16. Be3 {[%emt 0:08:11]} a5 {[%emt 0:00:57]} 17. Qc5 {[%emt 0:01:49]} Qxc5 {[%emt 0:03:01]} 18. Bxc5 {[%emt 0:02:40]} Rc8 {[%emt 0:02:22]} 19. Bd6 {[%emt 0:00:57]} Bc6 {[%emt 0:09:33]} 20. Rad1 {[%emt 0:04:47]} Bf8 {[%emt 0:01:53]} 21. Be5 {[%emt 0:02:00]} Be7 {[%emt 0:00:42]} 22. Bc4 {[%emt 0:02:52]} O-O {[%emt 0:03:49]} 23. Nxe6 {[%emt 0:01:59]} fxe6 {[%emt 0:00:26]} 24. Bxe6+ {[%emt 0:00:04]} Kg7 {[%emt 0:00:10]} 25. Bxc8 {[%emt 0:00:06]} Rxc8 {[%emt 0:00:06]} 26. Bd6 {[%emt 0:00:21]} Bd8 {[%emt 0:04:42]} 27. Rd4 {[%emt 0:01:48]} Bb6 {[%emt 0:02:07]} 28. Rdd1 {[%emt 0:03:57]} Ne4 {[%emt 0:04:02]} 29. Be5+ {[%emt 0:00:14]} Kf7 {[%emt 0:00:12]} 30. Bd4 {[%emt 0:00:13]} Bc7 {[%emt 0:00:06]} 31. Rd3 {[%emt 0:02:12]} Nf6 {[%emt 0:04:05]} 32. Rde3 {[%emt 0:06:49]} Bd8 {[%emt 0:03:38]} 33. Rd3 {[%emt 0:03:51]} Bc7 {[%emt 0:02:38]} 34. Rde3 {[%emt 0:00:07]} Bd8 {[%emt 0:00:04]} 35. Rd3 {[%emt 0:00:06]} 1/2-1/2

[Event "72nd RUS-ch Higher League 2019"]
[Site "Yaroslavl"]
[Date "2019.07.03"]
[Round "6.5"]
[White "Iljiushenok, Ilia"]
[Black "Dreev, Aleksey"]
[Result "1/2-1/2"]
[ECO "B40"]
[WhiteElo "2549"]
[BlackElo "2657"]
[Annotator "ChessBase"]
[PlyCount "88"]
[EventDate "2019.06.27"]
[EventType "swiss"]
[EventCountry "RUS"]
[SourceTitle "playchess.com"]
[Source "ChessBase"]
[SourceQuality "1"]
[TimeControl "40/5400+30:1800+30"]

1. e4 {[%emt 0:00:00]} c5 {[%emt 0:00:32]} 2. Nf3 {[%emt 0:00:00]} e6 {[%emt 0:00:07]} 3. d4 {[%emt 0:00:06]} cxd4 {[%emt 0:00:07]} 4. Nxd4 {[%emt 0:00:05]} Nf6 {[%emt 0:00:05]} 5. Nc3 {[%emt 0:00:07]} Nc6 {[%emt 0:00:04]} 6. Nxc6 {[%emt 0:08:12]} bxc6 {[%emt 0:01:04]} 7. e5 {[%emt 0:00:03]} Nd5 {[%emt 0:00:11]} 8. Ne4 {[%emt 0:00:04]} Qc7 {[%emt 0:00:16]} 9. f4 {[%emt 0:00:05]} Qb6 {[%emt 0:00:30]} 10. c4 {[%emt 0:00:16]} Bb4+ {[%emt 0:00:25]} 11. Ke2 {[%emt 0:00:23]} f5 {[%emt 0:00:21]} 12. Nf2 {[%emt 0:00:18]} Ba6 {[%emt 0:01:46]} 13. Kf3 {[%emt 0:00:17]} Ne7 {[%emt 0:00:31]} 14. Be3 {[%emt 0:06:26]} Bc5 {[%emt 0:02:33]} 15. Bxc5 {[%emt 0:06:15]} Qxc5 {[%emt 0:00:52]} 16. Qd6 {[%emt 0:00:34]} Qb6 {[%emt 0:00:40]} 17. b3 {[%emt 0:06:19]} c5 {[%emt 0:03:54]} 18. Rd1 {[%emt 0:07:40]} Bb7+ {[%emt 0:04:28]} 19. Kg3 {[%emt 0:02:45]} Qxd6 {[%emt 0:04:32]} 20. Rxd6 {[%emt 0:02:58]} g5 {[%emt 0:08:18]} 21. Nd3 {[%emt 0:19:47]} gxf4+ {[%emt 0:08:41]} 22. Kxf4 {[%emt 0:00:09]} Rc8 {[%emt 0:07:39]} 23. Be2 {[%emt 0:07:23]} Ng6+ {[%emt 0:20:31]} 24. Ke3 {[%emt 0:00:14]} Bxg2 {[%emt 0:01:43]} 25. Rd1 {[%emt 0:06:10]} Be4 {[%emt 0:09:26]} 26. Nf4 {[%emt 0:02:18]} Nxe5 {[%emt 0:01:11]} 27. Nxe6 {[%emt 0:00:07]} Ke7 {[%emt 0:01:03]} 28. Ng5 {[%emt 0:05:24]} Bc6 {[%emt 0:00:54]} 29. Bh5 {[%emt 0:05:18]} Rcg8 {[%emt 0:05:22]} 30. Kf4 {[%emt 0:02:47]} Ng6+ {[%emt 0:01:19]} 31. Bxg6 {[%emt 0:00:04]} Rxg6 {[%emt 0:02:49]} 32. R6d3 {[%emt 0:01:19]} Rf8 {[%emt 0:07:56]} 33. Re3+ {[%emt 0:05:09]} Be4 {[%emt 0:00:05]} 34. Nxe4 {[%emt 0:00:10]} fxe4+ {[%emt 0:02:36]} 35. Kxe4 {[%emt 0:00:04]} Re6+ {[%emt 0:00:48]} 36. Kd3 {[%emt 0:00:02]} Rf2 {[%emt 0:01:10]} 37. Rd2 {[%emt 0:04:29]} Rxe3+ {[%emt 0:01:27]} 38. Kxe3 {[%emt 0:00:01]} Rxd2 {[%emt 0:00:26]} 39. Kxd2 {[%emt 0:00:02]} Ke6 {[%emt 0:00:05]} 40. Kc3 {[%emt 0:00:00]} a5 {[%emt 0:00:00]} 41. a3 {[%emt 0:00:25]} h5 {[%emt 0:04:20]} 42. h4 {[%emt 0:03:24]} Kf5 {[%emt 0:02:43]} 43. b4 {[%emt 0:00:04]} axb4+ {[%emt 0:00:10]} 44. axb4 {[%emt 0:00:01]} cxb4+ {[%emt 0:00:17]} 1/2-1/2